fUST/lending_fUST_20240721
["ID","MTS","AMOUNT","RATE_DAILY","PERIOD"]
[332739061,1721495455460,-2727.13,0.00014246,2]
[332739062,1721495455472,-1000.0,0.00014246,2]
[332739063,1721495455483,-1000.0,0.00014246,2]
[332739064,1721495455495,-500.0,0.00014246,2]
[332739065,1721495455505,-1000.0,0.00014246,2]
[332739066,1721495455515,-1000.0,0.00014246,2]
[332739067,1721495455527,-1000.0,0.00014246,2]
[332739068,1721495455537,-1000.0,0.00014246,2]
[332739069,1721495455549,-1000.0,0.00014246,2]
[332739070,1721495455562,-1000.0,0.00014246,2]
[332739071,1721495455573,-1000.0,0.00014246,2]
[332739072,1721495455584,-827.11,0.00014246,2]
[332739073,1721495455594,-1000.0,0.00014246,2]
[332739074,1721495455604,-1000.0,0.00014246,2]
[332739075,1721495455614,-500.0,0.00014246,2]
[332739076,1721495455624,-1000.0,0.00014246,2]
[332739077,1721495455634,-1000.0,0.00014246,2]
[332739078,1721495455644,-1000.0,0.00014246,2]
[332739079,1721495455859,-1000.0,0.00014246,2]
[332739080,1721495455878,-1000.0,0.00014246,2]
[332739081,1721495455890,-1000.0,0.00014246,2]
[332739082,1721495455901,-1000.0,0.00014246,2]
[332739083,1721495455911,-1000.0,0.00014246,2]
[332739084,1721495455922,-1000.0,0.00014246,2]
[332739085,1721495455932,-882.34,0.00014246,2]
[332739086,1721495455941,-500.0,0.00014246,2]
[332739087,1721495455950,-1000.0,0.00014246,2]
[332739088,1721495455961,-500.0,0.00014246,2]
[332739089,1721495455971,-1000.0,0.00014246,2]
[332739090,1721495455980,-1000.0,0.00014246,2]
[332739091,1721495455991,-1000.0,0.00014246,2]
[332739092,1721495456001,-1000.0,0.00014246,2]
[332739093,1721495456013,-1000.0,0.00014246,2]
[332739094,1721495456023,-1000.0,0.00014246,2]
[332739095,1721495456034,-1000.0,0.00014246,2]
[332739096,1721495456044,-1000.0,0.00014246,2]
[332739097,1721495456055,-43680.81,0.00014246,2]
[332739098,1721495456068,-1000.0,0.00014246,2]
[332739099,1721495456079,-500.0,0.00014246,2]
[332739100,1721495456091,-1000.0,0.00014246,2]
[332739101,1721495456104,-1000.0,0.00014246,2]
[332739102,1721495456115,-1000.0,0.00014246,2]
[332739103,1721495456125,-517.24,0.00014246,2]
[332739104,1721495456136,-2182.36,0.00014246,2]
[332739105,1721495456148,-1000.0,0.00014246,2]
[332739106,1721495456158,-548.42,0.00014246,2]
[332739107,1721495456169,-519.98,0.00014246,2]
[332739108,1721495456180,-1000.0,0.00014246,2]
[332739109,1721495456189,-1000.0,0.00014246,2]
[332739110,1721495456200,-1000.0,0.00014246,2]
[332739111,1721495456212,-1000.0,0.00014246,2]
[332739112,1721495456222,-1000.0,0.00014246,2]
[332739113,1721495456234,-929.885468,0.00014246,2]
[332739114,1721495456246,-500.0,0.00014246,2]
[332739115,1721495456257,-500.0,0.00014246,2]
[332739116,1721495456269,-500.0,0.00014246,2]
[332739117,1721495456278,-1364.06,0.00014246,2]
[332739118,1721495456287,-500.0,0.00014246,2]
[332739119,1721495456297,-500.0,0.00014246,2]
[332739120,1721495456306,-500.0,0.00014246,2]
[332739121,1721495456315,-750.0,0.00014247,2]
[332739122,1721495456325,-150.112233,0.000143,3]
[332739123,1721495456334,-150.112233,0.000143,2]
[332739124,1721495456345,-500.0,0.0001452,2]
[332739125,1721495456354,-500.0,0.0001452,2]
[332739126,1721495456364,-889.18,0.0001452,2]
[332739127,1721495456374,-500.0,0.0001452,2]
[332739128,1721495456384,-500.0,0.0001452,2]
[332739129,1721495456395,-579.75,0.0001452,2]
[332739130,1721495456406,-2574.86,0.0001452,2]
[332739131,1721495456416,-500.0,0.0001452,2]
[332739132,1721495456427,-500.0,0.0001452,2]
[332739133,1721495456438,-1060.88,0.0001452,2]
[332739134,1721495456448,-500.0,0.0001452,2]
[332739135,1721495456458,-500.0,0.0001452,2]
[332739136,1721495456468,-500.0,0.0001452,2]
[332739137,1721495456479,-500.0,0.0001452,2]
[332739138,1721495456493,-793.26,0.0001452,2]
[332739139,1721495456504,-500.0,0.0001452,2]
[332739140,1721495456514,-557.98,0.0001452,2]
[332739141,1721495456524,-500.0,0.0001452,2]
[332739142,1721495456537,-681.41,0.0001452,2]
[332739143,1721495456547,-1906.13,0.0001452,2]
[332739144,1721495456558,-1461.37,0.0001452,2]
[332739145,1721495456569,-500.0,0.0001452,2]
[332739146,1721495456579,-655.3,0.0001452,2]
[332739147,1721495456588,-957.74,0.0001452,2]
[332739148,1721495456597,-702.74,0.0001452,2]
[332739149,1721495456607,-500.0,0.0001452,2]
[332739150,1721495456616,-500.0,0.0001452,2]
[332739151,1721495456626,-500.0,0.0001452,2]
[332739152,1721495456635,-500.0,0.0001452,2]
[332739153,1721495456644,-827.52,0.0001452,2]
[332739154,1721495456654,-595.62,0.0001452,2]
[332739155,1721495456663,-500.0,0.0001452,2]
[332739156,1721495456673,-500.0,0.0001452,2]
[332739157,1721495456683,-1234.83,0.0001452,2]
[332739158,1721495456693,-619.31853405,0.0001452,2]
[332739159,1721495456703,-970.97,0.0001452,2]
[332739160,1721495456716,-500.0,0.0001452,2]
[332739161,1721495456726,-500.0,0.0001452,2]
[332739162,1721495456736,-907.34,0.0001452,2]
[332739163,1721495456747,-568.34,0.0001452,2]
[332739164,1721495456756,-500.0,0.0001452,2]
[332739165,1721495456768,-793.84,0.0001452,2]
[332739166,1721495456778,-893.24,0.0001452,2]
[332739167,1721495456788,-560.72,0.0001452,2]
[332739168,1721495456799,-551.25,0.0001452,2]
[332739169,1721495456809,-500.0,0.0001452,2]
[332739170,1721495456819,-747.98,0.0001452,2]
[332739171,1721495456830,-1642.46,0.0001452,2]
[332739172,1721495456840,-602.62,0.0001452,2]
[332739173,1721495456850,-500.0,0.0001452,2]
[332739174,1721495456861,-500.0,0.0001452,2]
[332739175,1721495456870,-3339.07,0.0001452,2]
[332739176,1721495456881,-2704.37,0.0001452,2]
[332739177,1721495456890,-967.49,0.0001452,2]
[332739178,1721495456899,-2063.11,0.0001452,2]
[332739179,1721495456908,-844.33,0.0001452,2]
[332739180,1721495456918,-2235.94,0.0001452,2]
[332739181,1721495456927,-500.0,0.0001452,2]
[332739182,1721495456936,-763.24,0.0001452,2]
[332739183,1721495456946,-967.19,0.0001452,2]
[332739184,1721495456955,-500.0,0.0001452,2]
[332739185,1721495456965,-500.0,0.0001452,2]
[332739186,1721495456974,-500.0,0.0001452,2]
[332739187,1721495456983,-600.07,0.0001452,2]
[332739188,1721495456993,-635.32,0.0001452,2]
[332739189,1721495457002,-1088.88,0.0001452,2]
[332739190,1721495457011,-500.0,0.0001452,2]
[332739191,1721495457021,-582.59,0.0001452,2]
[332739192,1721495457030,-500.0,0.0001452,2]
[332739193,1721495457039,-1074.71,0.0001452,2]
[332739194,1721495457048,-500.0,0.0001452,2]
[332739195,1721495457057,-557.2,0.0001452,2]
[332739196,1721495457067,-577.70418545,0.0001452,2]
[332739197,1721495457075,-503.98,0.0001452,2]
[332739198,1721495457085,-500.0,0.0001452,2]
[332739199,1721495457094,-720.23,0.0001452,2]
[332739200,1721495457104,-500.0,0.0001452,2]
[332739201,1721495457113,-500.0,0.0001452,2]
[332739202,1721495457122,-500.0,0.0001452,2]
[332739203,1721495457132,-500.0,0.0001452,2]
[332739204,1721495457141,-534.11,0.0001452,2]
[332739205,1721495457150,-500.0,0.0001452,2]
[332739206,1721495457159,-500.0,0.0001452,2]
[332739207,1721495457168,-500.0,0.0001452,2]
[332739208,1721495457178,-3950.95,0.0001452,2]
[332739209,1721495457187,-500.0,0.0001452,2]
[332739210,1721495457196,-500.0,0.0001452,2]
[332739211,1721495457206,-549.98,0.0001452,2]
[332739212,1721495457215,-418.79387608,0.0001452,2]
[332739213,1721495457224,-1351.79,0.0001452,2]
[332739214,1721495457234,-500.0,0.0001452,2]
[332739215,1721495457245,-1135.29,0.0001452,2]
[332739216,1721495457254,-1851.86,0.0001452,2]
[332739217,1721495457263,-500.0,0.0001452,2]
[332739218,1721495457273,-500.0,0.0001452,2]
[332739219,1721495457283,-550.86,0.0001452,2]
[332739220,1721495457292,-500.0,0.0001452,2]
[332739221,1721495457302,-500.0,0.0001452,2]
[332739222,1721495457311,-500.0,0.0001452,2]
[332739223,1721495457320,-527.11963763,0.0001452,2]
[332739224,1721495457330,-500.0,0.0001452,2]
[332739225,1721495457340,-543.13,0.0001452,2]
[332739226,1721495457349,-634.39,0.0001452,2]
[332739227,1721495457358,-1832.54,0.0001452,2]
[332739228,1721495457368,-689.47,0.0001452,2]
[332739229,1721495457377,-1204.68,0.0001452,2]
[332739230,1721495457386,-994.69,0.0001452,2]
[332739231,1721495457395,-500.0,0.0001452,2]
[332739232,1721495457405,-500.0,0.0001452,2]
[332739233,1721495457414,-500.0,0.0001452,2]
[332739234,1721495457424,-500.0,0.0001452,2]
[332739235,1721495457433,-500.0,0.0001452,2]
[332739236,1721495457443,-785.88,0.0001452,2]
[332739237,1721495457453,-500.0,0.0001452,2]
[332739238,1721495457462,-500.0,0.0001452,2]
[332739239,1721495457471,-500.0,0.0001452,2]
[332739240,1721495457483,-500.0,0.0001452,2]
[332739241,1721495457494,-500.0,0.0001452,2]
[332739242,1721495457503,-500.0,0.0001452,2]
[332739243,1721495457512,-500.0,0.0001452,2]
[332739244,1721495457521,-150.0,0.0001452,2]
[332739245,1721495457532,-500.0,0.0001452,2]
[332739246,1721495457542,-521.87931672,0.0001452,2]
[332739247,1721495457551,-2734.53,0.0001452,2]
[332739248,1721495457560,-514.16,0.0001452,2]
[332739249,1721495457571,-960.34,0.0001452,2]
[332739250,1721495457580,-1811.71,0.0001452,2]
[332739251,1721495457589,-500.0,0.0001452,2]
[332739252,1721495457598,-500.0,0.0001452,2]
[332739253,1721495457608,-500.0,0.0001452,2]
[332739254,1721495457617,-612.49765031,0.0001452,2]
[332739255,1721495457626,-500.0,0.0001452,2]
[332739256,1721495457635,-500.0,0.0001452,2]
[332739257,1721495457645,-500.0,0.0001452,2]
[332739258,1721495457654,-2140.25,0.0001452,2]
[332739259,1721495457663,-500.0,0.0001452,2]
[332739260,1721495457672,-500.0,0.0001452,2]
[332739261,1721495457682,-2061.29,0.0001452,2]
[332739262,1721495457691,-522.39,0.0001452,2]
[332739263,1721495457700,-562.25,0.0001452,2]
[332739264,1721495457709,-500.0,0.0001452,2]
[332739265,1721495457720,-500.0,0.0001452,2]
[332739266,1721495457729,-729.09,0.0001452,2]
[332739267,1721495457740,-500.0,0.0001452,2]
[332739268,1721495457749,-1451.7,0.0001452,2]
[332739269,1721495457759,-500.0,0.0001452,2]
[332739270,1721495457769,-510.31,0.0001452,2]
[332739271,1721495457779,-500.0,0.0001452,2]
[332739272,1721495457788,-500.0,0.0001452,2]
[332739273,1721495457797,-1409.51,0.0001452,2]
[332739274,1721495457806,-2212.42,0.0001452,2]
[332739275,1721495457816,-973.63,0.0001452,2]
[332739276,1721495457825,-1857.09,0.0001452,2]
[332739277,1721495457834,-597.72,0.0001452,2]
[332739278,1721495457843,-944.13,0.0001452,2]
[332739279,1721495457852,-500.0,0.0001452,2]
[332739280,1721495457862,-500.0,0.0001452,2]
[332739281,1721495457871,-500.0,0.0001452,2]
[332739282,1721495457880,-797.1,0.0001452,2]
[332739283,1721495457889,-1950.43,0.0001452,2]
[332739284,1721495457899,-500.0,0.0001452,2]
[332739285,1721495457908,-1096.08,0.0001452,2]
[332739286,1721495457917,-500.0,0.0001452,2]
[332739287,1721495457926,-2028.85,0.0001452,2]
[332739288,1721495457936,-1564.09,0.0001452,2]
[332739289,1721495457945,-708.33,0.0001452,2]
[332739290,1721495457955,-710.15,0.0001452,2]
[332739291,1721495457964,-500.0,0.0001452,2]
[332739292,1721495457973,-500.0,0.0001452,2]
[332739293,1721495457983,-9697.8,0.0001452,2]
[332739294,1721495457993,-500.0,0.0001452,2]
[332739295,1721495458002,-1045.37,0.0001452,2]
[332739296,1721495458012,-848.68,0.0001452,2]
[332739297,1721495458021,-183.57010936,0.0001452,2]
[332739298,1721495458031,-2079.26,0.0001452,2]
[332739299,1721495458040,-500.0,0.0001452,2]
[332739300,1721495458051,-500.0,0.0001452,2]
[332739301,1721495458063,-5198.9,0.0001452,2]
[332739302,1721495458073,-755.78,0.0001452,2]
[332739303,1721495458084,-641.85,0.0001452,2]
[332739304,1721495458095,-3044.88,0.0001452,2]
[332739305,1721495458107,-688.33,0.0001452,2]
[332739306,1721495458118,-1185.26,0.0001452,2]
[332739307,1721495458129,-1354.73,0.0001452,2]
[332739308,1721495458140,-2207.73,0.0001452,2]
[332739309,1721495458151,-2525.7,0.0001452,2]
[332739310,1721495458162,-3650.95,0.0001452,2]
[332739311,1721495458172,-500.0,0.0001452,2]
[332739312,1721495458184,-500.0,0.0001452,2]
[332739313,1721495458197,-749.13,0.0001452,2]
[332739314,1721495458206,-787.24,0.0001452,2]
[332739315,1721495458215,-2474.72,0.0001452,2]
[332739316,1721495458272,-500.0,0.0001452,2]
[332739317,1721495458282,-558.71,0.0001452,2]
[332739318,1721495458291,-500.0,0.0001452,2]
[332739319,1721495458302,-170.36782242,0.0001452,2]
[332739320,1721495458311,-500.0,0.0001452,2]
[332739321,1721495458321,-5897.15,0.0001452,2]
[332739322,1721495458331,-668.72,0.0001452,2]
[332739323,1721495458340,-3713.23,0.0001452,2]
[332739324,1721495458350,-673.52,0.0001452,2]
[332739325,1721495458359,-2292.59,0.0001452,2]
[332739326,1721495458371,-3061.24,0.0001452,2]
[332739327,1721495458380,-1125.6,0.0001452,2]
[332739328,1721495458390,-500.0,0.0001452,2]
[332739329,1721495458398,-1737.87,0.0001452,2]
[332739330,1721495458408,-507.74759922,0.0001452,2]
[332739331,1721495458417,-634.59,0.0001452,2]
[332739332,1721495458426,-620.22,0.0001452,2]
[332739333,1721495458435,-1278.3,0.0001452,2]
[332739334,1721495458445,-630.64,0.0001452,2]
[332739335,1721495458455,-4000.88,0.0001452,2]
[332739336,1721495458464,-500.0,0.0001452,2]
[332739337,1721495458473,-2587.87,0.0001452,2]
[332739338,1721495458483,-526.21688811,0.0001452,2]
[332739339,1721495458502,-938.51,0.0001452,2]
[332739340,1721495458511,-1173.85,0.0001452,2]
[332739341,1721495458521,-500.0,0.0001452,2]
[332739342,1721495458530,-663.63,0.0001452,2]
[332739343,1721495458540,-500.0,0.0001452,2]
[332739344,1721495458550,-2018.48,0.0001452,2]
[332739345,1721495458559,-571.92256385,0.0001452,2]
[332739346,1721495458568,-500.0,0.0001452,2]
[332739347,1721495458577,-723.99,0.0001452,2]
[332739348,1721495458587,-374.40785984,0.0001452,2]
[332739349,1721495458596,-500.0,0.0001452,2]
[332739350,1721495458605,-554.02,0.0001452,2]
[332739351,1721495458614,-2965.8,0.0001452,2]
[332739352,1721495458623,-7880.53,0.0001452,2]
[332739353,1721495458633,-531.42,0.0001452,2]
[332739354,1721495458642,-974.25,0.0001452,2]
[332739355,1721495458651,-4375.62,0.0001452,2]
[332739356,1721495458661,-1908.47,0.0001452,2]
[332739357,1721495458669,-3157.07,0.0001452,2]
[332739358,1721495458679,-509.32,0.0001452,2]
[332739359,1721495458688,-500.0,0.0001452,2]
[332739360,1721495458696,-20147.95,0.0001452,2]
[332739361,1721495458706,-2383.38,0.0001452,2]
[332739362,1721495458716,-1272.38,0.0001452,2]
[332739363,1721495458726,-886.97,0.0001452,2]
[332739364,1721495458735,-797.94,0.0001452,2]
[332739365,1721495458747,-500.0,0.0001452,2]
[332739366,1721495458755,-679.57,0.0001452,2]
[332739367,1721495458764,-507.45,0.0001452,2]
[332739368,1721495458776,-1233.34,0.0001452,2]
[332739369,1721495458786,-5952.1,0.0001452,2]
[332739370,1721495458796,-500.0,0.0001452,2]
[332739371,1721495458805,-3305.45,0.0001452,2]
[332739372,1721495458815,-500.0,0.0001452,2]
[332739373,1721495458824,-1516.78,0.0001452,2]
[332739374,1721495458834,-500.0,0.0001452,2]
[332739375,1721495458843,-500.0,0.0001452,2]
[332739376,1721495458853,-500.0,0.0001452,2]
[332739377,1721495458862,-2954.47,0.0001452,2]
[332739378,1721495458871,-500.0,0.0001452,2]
[332739379,1721495458880,-500.0,0.0001452,2]
[332739380,1721495458889,-651.39,0.0001452,2]
[332739381,1721495458899,-1584.11,0.0001452,2]
[332739382,1721495458908,-2265.95,0.0001452,2]
[332739383,1721495458916,-12682.49,0.0001452,2]
[332739384,1721495458926,-3418.24,0.0001452,2]
[332739385,1721495458935,-521.18,0.0001452,2]
[332739386,1721495458944,-500.0,0.0001452,2]
[332739387,1721495458955,-500.0,0.0001452,2]
[332739388,1721495458967,-2217.87,0.0001452,2]
[332739389,1721495458977,-500.0,0.0001452,2]
[332739390,1721495458986,-656.34,0.0001452,2]
[332739391,1721495458996,-1029.51,0.0001452,2]
[332739392,1721495459005,-866.55,0.0001452,2]
[332739393,1721495459015,-3098.58,0.0001452,2]
[332739394,1721495459026,-790.9,0.0001452,2]
[332739395,1721495459035,-500.0,0.0001452,2]
[332739396,1721495459045,-1089.97,0.0001452,2]
[332739397,1721495459055,-1176.31,0.0001452,2]
[332739398,1721495459064,-394.64841131,0.0001452,2]
[332739399,1721495459073,-500.0,0.0001452,2]
[332739400,1721495459082,-500.0,0.0001452,2]
[332739401,1721495459091,-5072.01,0.0001452,2]
[332739402,1721495459100,-227.5005451,0.0001452,2]
[332739403,1721495459110,-454.533744,0.0001452,2]
[332739404,1721495459120,-454.533744,0.0001452,2]
[332739405,1721495459129,-500.0,0.0001452,2]
[332739406,1721495459139,-973.92,0.0001452,2]
[332739407,1721495459148,-1235.74,0.0001452,2]
[332739408,1721495459157,-2791.66,0.0001452,2]
[332739409,1721495459167,-454.533744,0.0001452,2]
[332739410,1721495459176,-608.07,0.0001452,2]
[332739411,1721495459185,-454.53374,0.0001452,2]
[332739412,1721495459194,-1328.17,0.0001452,2]
[332739413,1721495459203,-807.74,0.0001452,2]
[332739414,1721495459212,-1298.2,0.0001452,2]
[332739415,1721495459222,-500.0,0.0001452,2]
[332739416,1721495459231,-1667.58,0.0001452,2]
[332739417,1721495459240,-2403.89,0.0001452,2]
[332739418,1721495459251,-3365.92,0.0001452,2]
[332739419,1721495459260,-500.0,0.0001452,2]
[332739420,1721495459269,-2321.22,0.0001452,2]
[332739421,1721495459278,-500.0,0.0001452,2]
[332739422,1721495459287,-10113.51,0.0001452,2]
[332739423,1721495459299,-500.0,0.0001452,2]
[332739424,1721495459308,-1648.27,0.0001452,2]
[332739425,1721495459318,-1039.33,0.0001452,2]
[332739426,1721495459329,-500.0,0.0001452,2]
[332739427,1721495459338,-500.0,0.0001452,2]
[332739428,1721495459347,-227.16455224,0.0001452,2]
[332739429,1721495459356,-500.0,0.0001452,2]
[332739430,1721495459365,-1747.66,0.0001452,2]
[332739431,1721495459374,-3523.48,0.0001452,2]
[332739432,1721495459383,-500.0,0.0001452,2]
[332739433,1721495459395,-500.0,0.0001452,2]
[332739434,1721495459404,-561.16,0.0001452,2]
[332739435,1721495459413,-500.0,0.0001452,2]
[332739436,1721495459423,-500.0,0.0001452,2]
[332739437,1721495459432,-15891.07,0.0001452,2]
[332739438,1721495459442,-500.0,0.0001452,2]
[332739439,1721495459451,-2916.19,0.0001452,2]
[332739440,1721495459460,-500.0,0.0001452,2]
[332739441,1721495459470,-500.0,0.0001452,2]
[332739442,1721495459480,-588.66,0.0001452,2]
[332739443,1721495459497,-1835.91,0.0001452,2]
[332739444,1721495459509,-2727.13,0.0001452,2]
[332739445,1721495459518,-827.11,0.0001452,2]
[332739446,1721495459530,-500.0,0.0001452,2]
[332739447,1721495459539,-882.34,0.0001452,2]
[332739448,1721495459550,-500.0,0.0001452,2]
[332739449,1721495459559,-500.0,0.0001452,2]
[332739450,1721495459568,-43680.81,0.0001452,2]
[332739451,1721495459577,-517.24,0.0001452,2]
[332739452,1721495459587,-2182.36,0.0001452,2]
[332739453,1721495459596,-548.42,0.0001452,2]
[332739454,1721495459608,-519.98,0.0001452,2]
[332739455,1721495459618,-500.0,0.0001452,2]
[332739456,1721495459628,-500.0,0.0001452,2]
[332739457,1721495459637,-1364.06,0.0001452,2]
[332739458,1721495459647,-500.0,0.0001452,2]
[332739459,1721495459656,-500.0,0.0001452,2]
[332739460,1721495459667,-500.0,0.0001452,2]
[332739461,1721495459678,-506.061017,0.00014521,2]
[332739462,1721495459687,-506.061017,0.00014521,2]
[332739463,1721495459697,-506.061017,0.00014521,2]
[332739464,1721495459706,-506.061017,0.00014521,2]
[332739465,1721495459715,-506.061017,0.00014521,2]
[332739466,1721495459724,-506.061017,0.00014521,2]
[332739467,1721495459734,-506.061017,0.00014521,2]
[332739468,1721495459744,-506.061017,0.00014521,2]
[332739469,1721495459753,-506.061017,0.00014521,2]
[332739470,1721495459762,-506.061017,0.00014521,2]
[332739471,1721495459771,-506.061017,0.00014521,2]
[332739472,1721495459780,-506.061017,0.00014521,2]
[332739473,1721495459790,-506.061017,0.00014521,2]
[332739474,1721495459799,-506.061017,0.00014521,2]
[332739475,1721495459808,-506.061017,0.00014521,2]
[332739476,1721495459819,-506.061017,0.00014521,2]
[332739477,1721495459828,-506.061017,0.00014521,2]
[332739478,1721495459837,-506.061017,0.00014521,2]
[332739479,1721495459846,-506.061017,0.00014521,2]
[332739480,1721495459855,-506.061024,0.00014521,2]
[332739481,1721495459865,-153.9016,0.00014553,2]
[332739482,1721495459874,-626.88006573,0.00014639,2]
[332739483,1721495459883,-154.9094073,0.0001469,2]
[332739484,1721495459893,-526.75209491,0.0001469,2]
[332739485,1721495459902,-500.61107229,0.0001469,2]
[332739486,1721495459912,-500.0,0.00014794,2]
[332739487,1721495459922,-500.0,0.00014794,2]
[332739488,1721495459931,-889.18,0.00014794,2]
[332739489,1721495459941,-500.0,0.00014794,2]
[332739490,1721495459952,-500.0,0.00014794,2]
[332739491,1721495459962,-579.75,0.00014794,2]
[332739492,1721495459974,-2574.86,0.00014794,2]
[332739493,1721495459985,-500.0,0.00014794,2]
[332739494,1721495459999,-500.0,0.00014794,2]
[332739495,1721495460008,-1060.88,0.00014794,2]
[332739496,1721495460019,-500.0,0.00014794,2]
[332739497,1721495460029,-500.0,0.00014794,2]
[332739498,1721495460038,-500.0,0.00014794,2]
[332739499,1721495460047,-500.0,0.00014794,2]
[332739500,1721495460057,-793.26,0.00014794,2]
[332739501,1721495460067,-500.0,0.00014794,2]
[332739502,1721495460076,-557.98,0.00014794,2]
[332739503,1721495460088,-500.0,0.00014794,2]
[332739504,1721495460099,-681.41,0.00014794,2]
[332739505,1721495460110,-1906.13,0.00014794,2]
[332739506,1721495460120,-1461.37,0.00014794,2]
[332739507,1721495460130,-500.0,0.00014794,2]
[332739508,1721495460140,-655.3,0.00014794,2]
[332739509,1721495460150,-957.74,0.00014794,2]
[332739510,1721495460160,-702.74,0.00014794,2]
[332739511,1721495460171,-500.0,0.00014794,2]
[332739512,1721495460181,-500.0,0.00014794,2]
[332739513,1721495460191,-500.0,0.00014794,2]
[332739514,1721495460201,-500.0,0.00014794,2]
[332739515,1721495460210,-827.52,0.00014794,2]
[332739516,1721495460221,-595.62,0.00014794,2]
[332739517,1721495460232,-500.0,0.00014794,2]
[332739518,1721495460244,-500.0,0.00014794,2]
[332739519,1721495460253,-1234.83,0.00014794,2]
[332739520,1721495460262,-970.97,0.00014794,2]
[332739521,1721495460271,-500.0,0.00014794,2]
[332739522,1721495460281,-500.0,0.00014794,2]
[332739523,1721495460290,-907.34,0.00014794,2]
[332739524,1721495460299,-568.34,0.00014794,2]
[332739525,1721495460309,-500.0,0.00014794,2]
[332739526,1721495460319,-793.84,0.00014794,2]
[332739527,1721495460330,-893.24,0.00014794,2]
[332739528,1721495460340,-560.72,0.00014794,2]
[332739529,1721495460350,-551.25,0.00014794,2]
[332739530,1721495460359,-500.0,0.00014794,2]
[332739531,1721495460369,-747.98,0.00014794,2]
[332739532,1721495460379,-1642.46,0.00014794,2]
[332739533,1721495460389,-602.62,0.00014794,2]
[332739534,1721495460398,-500.0,0.00014794,2]
[332739535,1721495460408,-500.0,0.00014794,2]
[332739536,1721495460417,-3339.07,0.00014794,2]
[332739537,1721495460427,-2704.37,0.00014794,2]
[332739538,1721495460436,-967.49,0.00014794,2]
[332739539,1721495460447,-2063.11,0.00014794,2]
[332739540,1721495460456,-844.33,0.00014794,2]
[332739541,1721495460465,-2235.94,0.00014794,2]
[332739542,1721495460475,-500.0,0.00014794,2]
[332739543,1721495460486,-763.24,0.00014794,2]
[332739544,1721495460499,-967.19,0.00014794,2]
[332739545,1721495460509,-500.0,0.00014794,2]
[332739546,1721495460519,-500.0,0.00014794,2]
[332739547,1721495460528,-531.66485666,0.00014794,2]
[332739548,1721495460538,-600.07,0.00014794,2]
[332739549,1721495460548,-635.32,0.00014794,2]
[332739550,1721495460557,-1088.88,0.00014794,2]
[332739551,1721495460567,-500.0,0.00014794,2]
[332739552,1721495460577,-582.59,0.00014794,2]
[332739553,1721495460586,-500.0,0.00014794,2]
[332739554,1721495460596,-1074.71,0.00014794,2]
[332739555,1721495460606,-500.0,0.00014794,2]
[332739556,1721495460616,-557.2,0.00014794,2]
[332739557,1721495460626,-503.98,0.00014794,2]
[332739558,1721495460635,-500.0,0.00014794,2]
[332739559,1721495460645,-720.23,0.00014794,2]
[332739560,1721495460655,-500.0,0.00014794,2]